bitfinex/quotes_SOLUSD_20240917
["timestamp","ask_amount","ask_price","bid_price","bid_amount"]
[1726599345655,1.88722423,132.49,132.42,24.01087428]
[1726599345846,16.1832,132.5,132.44,23.96660808]
[1726599346453,8.06684383,132.52,132.46,23.96660808]
[1726599346657,0.2124586,132.52,132.46,23.96660808]
[1726599352281,0.2124586,132.52,132.48,23.96660808]
[1726599355789,0.2124586,132.52,132.47,20.0]
[1726599356095,0.2124586,132.52,132.48,15.34142034]
[1726599356291,0.2124586,132.52,132.49,15.34142034]
[1726599356866,0.2124586,132.52,132.5,16.85073488]
[1726599357187,0.2124586,132.52,132.51,15.34142034]
[1726599357411,0.2124586,132.52,132.5,15.34142034]
[1726599359769,0.2124586,132.52,132.51,15.34142034]
[1726599360593,0.2124586,132.52,132.5,15.34142034]
[1726599360777,0.2124586,132.52,132.51,15.34142034]
[1726599374495,0.2124586,132.52,132.51,39.11830434]
[1726599375500,0.2567248,132.56,132.53,20.0]
[1726599375824,0.2567248,132.56,132.53,15.34142034]
[1726599376609,0.2567248,132.56,132.45,18.14961877]
[1726599376610,0.2567248,132.56,132.51,35.34142034]
[1726599376789,0.2567248,132.56,132.52,15.34142034]
[1726599376997,0.2567248,132.56,132.53,15.34142034]
[1726599377191,0.2567248,132.56,132.55,15.34142034]
[1726599377513,0.2567248,132.56,132.54,15.34142034]
[1726599377713,0.2567248,132.56,132.53,15.34142034]
[1726599378015,2.14279085,132.56,132.52,15.34142034]
[1726599378199,2.14279085,132.56,132.51,15.34142034]
[1726599378400,9.68669085,132.56,132.47,16.2985]
[1726599378594,9.68669085,132.56,132.49,15.34142034]
[1726599379505,29.76959,132.55,132.49,15.34142034]
[1726599379714,29.76959,132.55,132.44,15.267]
[1726599379715,1.88662687,132.54,132.48,15.34142034]
[1726599380010,22.22519,132.55,132.49,15.34142034]
[1726599381213,29.76949,132.55,132.49,15.34142034]
[1726599381805,22.22519,132.55,132.49,15.34142034]
[1726599383916,22.22519,132.55,132.5,15.34142034]
[1726599385098,22.22519,132.55,132.49,15.34142034]
[1726599385417,29.76969,132.55,132.49,15.34142034]
[1726599385941,22.22519,132.55,132.5,15.34142034]
[1726599386435,22.0997,132.55,132.5,15.34142034]
[1726599387201,0.2567248,132.56,132.54,15.34142034]
[1726599387402,0.2567248,132.56,132.55,15.34142034]
[1726599387801,0.2567248,132.6,132.55,15.34142034]
[1726599388009,0.2567248,132.6,132.52,6.1344]
[1726599388010,0.2567248,132.6,132.59,15.34142034]
[1726599388215,0.2567248,132.6,132.58,15.34142034]
[1726599389617,0.2567248,132.6,132.57,15.34142034]
[1726599390028,0.2567248,132.6,132.56,23.93691074]
[1726599392028,0.2567248,132.6,132.54,23.93691074]
[1726599392402,2.14250478,132.6,132.54,23.93691074]
[1726599392798,0.2567248,132.6,132.54,23.93691074]
[1726599394129,0.2567248,132.6,132.56,23.93691074]
[1726599399723,0.2567248,132.6,132.53,20.0]
[1726599399906,7.66799,132.59,132.5,23.93691074]
[1726599400109,15.6041,132.57,132.48,30.35051074]
[1726599400312,1.88636555,132.56,132.48,30.35051074]
[1726599401218,30.0,132.55,132.48,30.35051074]
[1726599401536,1.88636555,132.56,132.48,30.35051074]
[1726599401826,1.88636555,132.56,132.5,23.93691074]
[1726599402135,0.12549,132.56,132.5,23.93691074]
[1726599403009,15.6041,132.57,132.5,23.93691074]
[1726599404430,2.01185636,132.56,132.5,23.93691074]
[1726599404622,2.01185636,132.56,132.48,30.35051074]
[1726599405536,1.88636636,132.56,132.52,23.93691074]
[1726599405834,15.6041,132.57,132.53,1.50891998]
[1726599406203,15.6041,132.57,132.53,1.5088862]
[1726599406409,19.48205825,132.6,132.54,23.93691074]
[1726599407106,19.48205825,132.6,132.55,1.50863667]
[1726599407304,1.88579734,132.59,132.54,23.93691074]
[1726599408614,19.48205825,132.6,132.54,23.93691074]
[1726599412235,21.36785875,132.6,132.54,23.93691074]
[1726599412918,21.36785875,132.6,132.52,23.93691074]
[1726599413126,0.12549,132.59,132.53,20.0]
[1726599413322,2.01147921,132.59,132.53,20.0]
[1726599413518,0.12549,132.59,132.53,20.0]
[1726599415035,0.12549,132.59,132.53,21.50878213]
[1726599415336,0.12549,132.59,132.53,20.0]
[1726599416535,2.01146175,132.59,132.53,20.0]
[1726599416732,0.12549,132.59,132.53,20.0]
[1726599417536,15.6038248,132.6,132.54,1.50877871]
[1726599417749,15.6038248,132.6,132.54,23.93691074]
[1726599418043,15.6038248,132.6,132.57,15.32368189]
[1726599418930,15.6038248,132.6,132.59,15.32368189]
[1726599419116,0.2567248,132.6,132.59,15.32368189]
[1726599419513,0.2567248,132.6,132.58,15.32368189]
[1726599420022,0.2567248,132.6,132.5,20.0]
[1726599420343,30.2567248,132.6,132.53,20.0]
[1726599420640,30.2567248,132.6,132.52,23.93964796]
[1726599420823,2.01134338,132.59,132.52,23.93964796]
[1726599423136,30.0,132.58,132.52,23.93964796]
[1726599423337,1.88597906,132.57,132.52,23.93964796]
[1726599423635,31.8859791,132.58,132.52,23.93964796]
[1726599424141,0.2567248,132.6,132.54,23.93964796]
[1726599424348,2.14246554,132.6,132.54,23.93964796]
[1726599424519,0.2567248,132.6,132.54,23.93964796]
[1726599425951,2.14245971,132.6,132.54,23.93964796]
[1726599428152,2.14246404,132.6,132.54,23.93964796]
[1726599430140,0.2567248,132.6,132.58,23.93964796]
[1726599430456,0.2567248,132.6,132.57,23.93964796]
[1726599433329,0.2567248,132.6,132.55,43.93964796]
[1726599435053,0.2567248,132.6,132.57,23.93964796]
[1726599437052,0.2567248,132.6,132.55,43.93964796]
[1726599439555,0.2567248,132.6,132.56,1.50848475]
[1726599439965,0.2567248,132.6,132.58,15.31990245]
[1726599441953,0.2567248,132.6,132.59,15.31990245]
[1726599443857,0.2462958,132.62,132.59,39.09678645]
[1726599444066,0.2462958,132.62,132.61,15.31990245]
[1726599444658,0.2567248,132.64,132.61,16.82774659]
[1726599444863,0.2567248,132.64,132.63,15.31990245]
[1726599450356,0.2567248,132.64,132.62,15.31990245]
[1726599450668,0.12549,132.63,132.57,15.31990245]
[1726599450851,9.55082124,132.63,132.57,15.31990245]
[1726599451941,7.5404,132.62,132.54,30.57060839]
[1726599452250,7.5416,132.6,132.53,23.94160839]
[1726599452450,13.8106,132.61,132.53,23.94160839]
[1726599452769,0.12549,132.6,132.53,23.94160839]
[1726599453072,7.66709,132.6,132.53,23.94160839]
[1726599453375,7.5421,132.59,132.51,23.94160839]
[1726599453573,1.88601859,132.58,132.51,23.94160839]
[1726599453749,1.8861411,132.57,132.49,23.94160839]
[1726599453948,9.4294411,132.57,132.49,23.94160839]
[1726599454173,7.66939,132.56,132.49,23.94160839]
[1726599454376,31.88643397,132.55,132.49,23.94160839]
[1726599455074,31.88643397,132.55,132.5,20.2567248]
[1726599456849,1.88643397,132.55,132.5,20.2567248]
[1726599457049,16.65889,132.56,132.5,20.2567248]
[1726599457361,16.5334,132.56,132.51,23.94160839]
[1726599457749,15.3693,132.6,132.51,23.94160839]
[1726599457962,15.49479,132.6,132.51,23.94160839]
[1726599458549,15.49479,132.6,132.53,23.94160839]
[1726599458842,15.3693,132.6,132.53,23.94160839]
[1726599459466,15.3693,132.6,132.55,23.94160839]
[1726599459744,6.2696,132.61,132.55,23.94160839]
[1726599461750,1.88545129,132.6,132.55,23.94160839]
[1726599461966,6.2696,132.61,132.55,23.94160839]
[1726599463871,6.2696,132.61,132.56,1.50840186]
[1726599464675,6.2696,132.61,132.55,23.94160839]
[1726599466066,25.95278894,132.63,132.55,23.94160839]
[1726599466276,1.88532942,132.62,132.56,23.776884]
[1726599468276,1.88532942,132.62,132.57,23.94160839]
[1726599468581,0.2567248,132.64,132.61,23.94160839]
[1726599468759,0.2567248,132.64,132.63,23.94160839]
[1726599471684,0.2567248,132.64,132.61,23.94160839]
[1726599474359,0.2567248,132.64,132.63,23.94160839]
[1726599481584,0.2567248,132.68,132.64,20.0]
[1726599481761,0.2567248,132.68,132.67,23.94160839]
[1726599482467,0.2567248,132.68,132.65,23.94160839]
[1726599489887,0.2567248,132.68,132.67,15.29858381]
[1726599498197,0.2462958,132.7,132.67,39.07546781]
[1726599498412,0.2462958,132.7,132.69,15.29858381]
[1726599498986,0.2567248,132.72,132.69,15.29858381]
[1726599499197,0.2567248,132.72,132.71,15.29858381]
[1726599500178,0.2567248,132.72,132.67,43.776884]
[1726599500379,0.2567248,132.72,132.69,15.29858381]
[1726599501906,2.14057378,132.72,132.66,22.3812]
[1726599502083,2.14057378,132.72,132.64,0.12549]
[1726599502084,0.2567248,132.72,132.64,0.12549]
[1726599502277,30.2567248,132.72,132.67,15.29858381]
[1726599502478,1.88417653,132.71,132.68,15.29858381]
[1726599502679,30.2567248,132.72,132.7,15.29858381]
[1726599503509,0.2567248,132.72,132.7,15.29858381]
[1726599505789,0.2567248,132.72,132.71,15.29858381]
[1726599508403,0.2567248,132.72,132.69,20.0]
[1726599508596,0.2567248,132.72,132.71,15.29858381]
[1726599508803,0.2567248,132.72,132.7,15.29858381]
[1726599510400,0.2567248,132.72,132.71,15.29858381]
[1726599513315,0.2567248,132.76,132.72,43.776884]
[1726599513523,0.2567248,132.76,132.75,15.29858381]
[1726599522316,0.2567248,132.76,132.75,39.20095781]
[1726599523806,0.2567248,132.76,132.75,39.07546781]
[1726599526912,0.2567248,132.76,132.72,20.0]
[1726599527108,0.2567248,132.76,132.75,15.29858381]
[1726599530239,0.2567248,132.76,132.75,39.07546781]
[1726599532835,0.2462958,132.78,132.75,39.20095781]
[1726599533033,0.2462958,132.78,132.77,15.29858381]
[1726599533834,0.2462958,132.78,132.77,16.8046093]
[1726599534022,16.1976,132.81,132.77,16.8046093]
[1726599534223,0.3789812,132.78,132.77,1.50602549]
[1726599535137,0.3789812,132.78,132.76,23.776884]
[1726599535337,0.3789812,132.78,132.77,15.29858381]
[1726599543931,0.3789812,132.78,132.7,20.0]
[1726599544134,0.3789812,132.78,132.77,15.29858381]
[1726599544758,37.9102812,132.78,132.73,15.29858381]
[1726599544955,1.88332395,132.77,132.73,15.29858381]
[1726599545425,1.88322841,132.76,132.73,15.29858381]
[1726599545741,30.3789812,132.78,132.74,15.29858381]
[1726599546047,30.3789812,132.78,132.75,15.29858381]
[1726599546549,1.88329894,132.77,132.74,15.29858381]
[1726599546747,30.3789812,132.78,132.74,15.29858381]
[1726599546950,1.88335289,132.77,132.74,15.29858381]
[1726599547155,30.3789812,132.78,132.74,15.29858381]
[1726599547326,30.3789812,132.78,132.75,15.29858381]
[1726599547531,1.88330515,132.77,132.75,15.29858381]
[1726599547931,30.3789812,132.78,132.75,15.29858381]
[1726599549168,0.3789812,132.78,132.75,15.29858381]
[1726599550886,0.3789812,132.78,132.77,15.29858381]
[1726599551167,30.3789812,132.78,132.76,15.29858381]
[1726599551570,0.3789812,132.78,132.76,15.29858381]
[1726599552774,0.3789812,132.78,132.77,15.29858381]
[1726599554651,0.3789812,132.78,132.71,20.0]
[1726599554954,0.3789812,132.78,132.77,15.29858381]
[1726599559081,0.3789812,132.78,132.76,15.29858381]
[1726599559263,0.3789812,132.78,132.71,26.2876]
[1726599559459,2.2622332,132.78,132.74,15.29858381]
[1726599560879,2.2622332,132.78,132.75,15.29858381]
[1726599561181,0.3789812,132.78,132.75,15.29858381]
[1726599561366,30.3789812,132.78,132.75,15.29858381]
[1726599561756,32.26213559,132.78,132.75,15.29858381]
[1726599562080,30.3789812,132.78,132.77,15.29858381]
[1726599562689,0.3789812,132.78,132.77,15.29858381]
[1726599563563,0.3789812,132.78,132.76,15.29858381]
[1726599566283,0.3789812,132.78,132.75,15.29858381]
[1726599566474,2.26217546,132.78,132.75,15.29858381]
[1726599566877,9.79337546,132.78,132.74,15.29858381]
[1726599567185,2.26217546,132.78,132.74,15.29858381]
[1726599567483,0.3789812,132.78,132.75,15.29858381]
[1726599567659,2.26221206,132.78,132.75,15.29858381]
[1726599567867,9.79341206,132.78,132.74,15.29858381]
[1726599568785,9.79341206,132.78,132.73,15.29858381]
[1726599568786,7.5318,132.77,132.73,15.29858381]
[1726599568977,1.88354758,132.76,132.72,15.29858381]
[1726599569375,1.88354758,132.76,132.73,15.29858381]
[1726599569872,7.9103812,132.78,132.73,15.29858381]
[1726599570199,2.00902122,132.77,132.73,15.29858381]
[1726599570376,1.88353247,132.76,132.73,15.29858381]
[1726599570581,0.12549,132.77,132.73,15.29858381]
[1726599570890,0.12549,132.77,132.74,15.29858381]
[1726599571093,2.00898488,132.77,132.73,15.29858381]
[1726599571294,0.12549,132.77,132.73,15.29858381]
[1726599571592,0.12549,132.77,132.74,15.29858381]
[1726599575105,9.54076724,132.77,132.69,23.776884]
[1726599575283,7.5326,132.76,132.69,20.0]
[1726599575490,7.5326,132.76,132.72,15.29858381]
[1726599575987,9.41634658,132.76,132.72,15.29858381]
[1726599576184,7.5326,132.76,132.72,15.29858381]
[1726599577196,31.434274,132.77,132.73,15.29858381]
[1726599577384,7.65739,132.77,132.73,15.29858381]
[1726599577594,9.54101809,132.77,132.73,15.29858381]
[1726599577899,8.22121253,132.78,132.75,15.29858381]
[1726599578200,0.3789812,132.78,132.76,15.29858381]
[1726599580483,0.3789812,132.78,132.77,15.29858381]
[1726599583704,0.3789812,132.78,132.72,23.776884]
[1726599583876,0.3789812,132.78,132.76,15.29858381]
[1726599584083,0.3789812,132.78,132.77,15.29858381]
[1726599587510,0.2606329,132.82,132.77,15.29858381]
[1726599587717,0.2606329,132.82,132.81,15.29858381]
[1726599587888,30.2606329,132.82,132.81,15.29858381]
[1726599589208,30.2606329,132.82,132.8,15.29858381]
[1726599589388,0.2606329,132.82,132.8,15.29858381]
[1726599589587,2.14316581,132.82,132.8,15.29858381]
[1726599589984,2.14316581,132.82,132.79,15.29858381]
[1726599592205,9.67226581,132.82,132.79,15.29858381]
[1726599592499,2.14316581,132.82,132.79,15.29858381]
[1726599592702,9.67256581,132.82,132.78,15.29858381]
[1726599593414,7.7900329,132.82,132.79,15.29858381]
[1726599593795,30.0,132.81,132.79,15.29858381]
[1726599595014,30.0,132.81,132.8,15.29858381]
[1726599595195,30.0,132.81,132.74,24.027864]
[1726599595196,30.0,132.81,132.79,15.29858381]
[1726599595515,0.2606329,132.82,132.79,15.29858381]
[1726599595713,7.5286,132.83,132.79,15.29858381]
[1726599596033,1.88263156,132.82,132.78,15.29858381]
[1726599596390,9.41183156,132.82,132.78,15.29858381]
[1726599596612,7.65519,132.81,132.77,15.29858381]
[1726599596837,17.56724107,132.8,132.71,15.5867]
[1726599597112,9.41404328,132.79,132.74,15.29858381]
[1726599597706,1.88334328,132.79,132.75,15.29858381]
[1726599598220,23.2144,132.8,132.75,15.29858381]
[1726599598403,0.12549,132.79,132.76,15.29858381]
[1726599598605,30.12549,132.79,132.76,15.29858381]
[1726599599615,30.0,132.79,132.76,15.29858381]
[1726599600126,30.0,132.79,132.77,15.29858381]
[1726599600306,1.88307055,132.78,132.71,15.5867]
[1726599600488,0.12549,132.77,132.71,15.5867]
[1726599600689,7.5336,132.74,132.69,0.1758654]
[1726599600996,30.12549,132.77,132.73,15.29858381]
[1726599601200,30.0,132.77,132.75,15.29858381]
[1726599601414,30.0,132.77,132.76,15.29858381]
[1726599601726,1.88327738,132.79,132.74,15.29858381]
[1726599601898,9.41407738,132.79,132.74,15.29858381]
[1726599602094,9.41407738,132.79,132.75,15.29858381]
[1726599602301,9.41407738,132.79,132.74,15.29858381]
[1726599603603,7.65679,132.78,132.73,15.29858381]
[1726599603802,7.65679,132.78,132.74,15.29858381]
[1726599604030,0.12549,132.78,132.75,15.29858381]
[1726599604204,15.6842,132.8,132.77,15.29858381]
[1726599604403,30.0,132.78,132.73,15.1302]
[1726599604809,7.83694285,132.81,132.73,15.1302]
[1726599605730,1.8830601,132.8,132.76,15.29858381]
[1726599605908,15.36654285,132.81,132.73,15.1302]
[1726599605909,1.88305973,132.79,132.73,15.1302]
[1726599606107,0.12549,132.78,132.74,15.29858381]
[1726599606307,0.12549,132.78,132.72,15.29858381]
[1726599606308,2.00889588,132.78,132.72,15.29858381]
[1726599606513,17.05129588,132.78,132.72,15.29858381]
[1726599606823,24.58259588,132.78,132.72,15.29858381]
[1726599607016,7.532,132.77,132.72,15.29858381]
[1726599607226,7.5324,132.76,132.72,15.29858381]
[1726599607426,0.12549,132.76,132.72,15.29858381]
[1726599608299,7.65789,132.76,132.72,15.29858381]
[1726599608503,7.65789,132.76,132.7,15.29858381]
[1726599608504,9.41660566,132.75,132.7,15.29858381]
[1726599608699,9.41660566,132.75,132.69,15.6690654]
[1726599608700,7.5336,132.74,132.69,0.1758654]
[1726599608931,9.5437421,132.73,132.69,15.47444921]
[1726599609129,0.12549,132.7,132.69,0.1758654]
[1726599609551,23.776884,132.72,132.69,0.1758654]
[1726599609753,23.3007,132.73,132.69,0.1758654]
[1726599609931,0.12549,132.72,132.69,0.1758654]
[1726599610327,15.7661,132.73,132.69,0.1758654]
[1726599610746,6.2759,132.74,132.69,0.1758654]
[1726599610950,1.88396956,132.73,132.69,0.1758654]
[1726599611254,0.12549,132.74,132.69,0.1758654]
[1726599611436,31.0510559,132.76,132.7,23.90317772]
[1726599611636,0.12549,132.75,132.7,23.90317772]
[1726599611851,2.00932754,132.75,132.7,23.90317772]
[1726599612253,2.00932754,132.75,132.69,0.1758654]
[1726599612439,23.902374,132.74,132.69,0.1758654]
[1726599612830,7.5342,132.73,132.69,0.1758654]
[1726599613337,7.5341,132.73,132.69,0.1758654]
[1726599614052,7.65919,132.74,132.69,0.1758654]
[1726599614661,9.41834176,132.73,132.69,0.1758654]
[1726599615656,7.5342,132.73,132.69,0.1758654]
[1726599615824,0.12549,132.74,132.69,0.1758654]
[1726599616144,7.5329,132.75,132.7,23.90317772]
[1726599616346,23.1715,132.76,132.7,23.90317772]
[1726599616558,25.05527032,132.76,132.7,23.90317772]
[1726599617269,7.5329,132.75,132.69,0.1758654]
[1726599617561,0.12549,132.74,132.69,0.1758654]
[1726599618245,2.00944203,132.74,132.69,0.1758654]
[1726599621346,7.5347,132.72,132.69,0.1758654]
[1726599621549,1.88423121,132.71,132.69,0.1758654]
[1726599621755,1.88427554,132.7,132.69,0.1758654]
[1726599622343,7.5349,132.72,132.69,0.1758654]
[1726599622547,23.902374,132.73,132.69,0.1758654]
[1726599622771,1.88424627,132.71,132.69,0.1758654]
[1726599623059,31.436774,132.73,132.69,0.1758654]
[1726599623640,25.78662312,132.73,132.69,0.1758654]
[1726599623841,15.41010913,132.74,132.69,0.1758654]
[1726599624472,7.87650913,132.74,132.69,0.1758654]
[1726599624782,1.88395053,132.73,132.69,0.1758654]
[1726599625746,0.12549,132.74,132.69,0.1758654]
[1726599625946,2.00944078,132.74,132.69,0.1758654]
[1726599626160,0.12549,132.74,132.69,0.1758654]
[1726599626842,2.00943907,132.74,132.69,0.1758654]
[1726599627346,0.12549,132.74,132.69,0.1758654]
[1726599627955,0.12549,132.75,132.69,0.1758654]
[1726599628451,15.40913518,132.76,132.7,46.41087772]
[1726599628647,7.5326,132.76,132.7,46.41087772]
[1726599629865,7.5331,132.75,132.7,22.5077]
[1726599630046,1.88379325,132.74,132.7,22.5077]
[1726599630370,1.88379325,132.73,132.69,0.1758654]
[1726599630869,7.5337,132.74,132.69,0.1758654]
[1726599631371,7.5331,132.75,132.69,0.1758654]
[1726599631572,0.12549,132.74,132.69,0.1758654]
[1726599632258,2.00945558,132.74,132.69,0.1758654]
[1726599632668,9.54335558,132.74,132.69,0.1758654]
[1726599634074,1.88396558,132.74,132.69,0.1758654]
[1726599634372,31.308784,132.77,132.7,23.90317772]
[1726599635152,7.87733418,132.78,132.72,23.90317772]
[1726599635153,15.40873418,132.78,132.72,23.90317772]
[1726599636486,0.12549,132.77,132.72,23.90317772]
[1726599638059,2.00910994,132.77,132.72,23.90317772]
[1726599640060,9.54090994,132.77,132.72,23.90317772]
[1726599640260,9.54090994,132.77,132.7,23.90317772]
[1726599640651,7.5324,132.76,132.7,23.90317772]
[1726599640849,9.4172099,132.75,132.69,0.1758654]
[1726599641275,7.5342,132.73,132.69,0.1758654]
[1726599641476,1.88413766,132.72,132.69,0.1758654]
[1726599645259,9.41883766,132.72,132.69,0.1758654]
[1726599645461,1.88431567,132.71,132.69,0.1758654]
[1726599645655,7.5347,132.72,132.69,0.1758654]
[1726599646062,1.88431421,132.71,132.69,0.1758654]
[1726599646968,2.0098008,132.72,132.69,0.1758654]
[1726599647371,7.5357,132.7,132.69,0.1758654]
[1726599647666,1.8843108,132.72,132.69,0.1758654]
[1726599647667,7.66079,132.71,132.69,0.1758654]
[1726599647887,2.00998805,132.7,132.69,0.1758654]
[1726599648485,7.5349,132.72,132.69,0.1758654]
[1726599648685,0.12549,132.71,132.69,0.1758654]
[1726599648981,0.12549,132.72,132.69,0.1758654]
[1726599649168,2.00979992,132.72,132.69,0.1758654]
[1726599649370,0.12549,132.72,132.69,0.1758654]
[1726599649562,2.00979029,132.72,132.69,0.1758654]
[1726599649762,1.88430003,132.71,132.69,0.1758654]
[1726599649960,0.12549,132.73,132.69,0.1758654]
[1726599650164,2.00963612,132.73,132.69,0.1758654]
[1726599650361,9.54373612,132.73,132.69,0.1758654]
[1726599650772,0.12549,132.73,132.69,0.1758654]
[1726599651068,2.00964093,132.73,132.69,0.1758654]
[1726599651269,9.54394093,132.73,132.69,0.1758654]
[1726599651563,7.65979,132.73,132.69,0.1758654]
[1726599651970,1.88425429,132.72,132.69,0.1758654]
[1726599652171,1.88430429,132.71,132.69,0.1758654]
[1726599652382,7.5347,132.72,132.69,0.1758654]
[1726599652889,9.41897833,132.72,132.69,0.1758654]
[1726599653186,7.66079,132.71,132.69,0.1758654]
[1726599653358,2.00999873,132.7,132.69,0.1758654]
[1726599655462,7.5342,132.73,132.69,0.1758654]
[1726599655674,31.436574,132.73,132.69,0.1758654]
[1726599655864,23.902374,132.73,132.69,0.1758654]
[1726599656062,9.41903799,132.72,132.69,0.1758654]
[1726599656677,7.5354,132.71,132.69,0.1758654]
[1726599656893,2.0099794,132.7,132.69,0.1758654]
[1726599659079,7.5348,132.72,132.69,0.1758654]
[1726599659691,0.12549,132.72,132.69,0.1758654]
[1726599659992,15.4146549,132.74,132.69,0.1758654]
[1726599660168,2.00966662,132.73,132.69,0.1758654]
[1726599660891,7.535,132.72,132.69,0.1758654]
[1726599661099,9.4197469,132.71,132.69,0.1758654]
[1726599661407,1.88444689,132.7,132.69,0.1758654]
[1726599661689,9.54563689,132.7,132.69,0.1758654]
[1726599662377,7.66119,132.7,132.69,0.1758654]
[1726599662990,7.88181071,132.73,132.69,0.1758654]
[1726599663296,2.00977426,132.72,132.69,0.1758654]
[1726599663589,9.54447426,132.72,132.69,0.1758654]
[1726599663971,0.12549,132.72,132.69,0.1758654]
[1726599664866,9.54437225,132.72,132.69,0.1758654]
[1726599665066,2.00977225,132.72,132.69,0.1758654]
[1726599667869,9.54477225,132.72,132.69,0.1758654]
[1726599668383,7.5352,132.71,132.69,0.1758654]
[1726599668565,2.01007517,132.7,132.69,0.1758654]
[1726599668766,9.54577517,132.7,132.69,0.1758654]
[1726599669376,2.01007517,132.7,132.69,0.1758654]
[1726599669989,1.88458092,132.71,132.69,0.1758654]
[1726599670177,0.12549,132.71,132.69,0.1758654]
[1726599670580,23.902374,132.72,132.69,0.1758654]
[1726599671089,0.12549,132.72,132.69,0.1758654]
[1726599671994,7.88181071,132.73,132.7,23.90317772]
[1726599672302,22.55900236,132.76,132.7,30.21317772]
[1726599672595,3.87823345,132.76,132.7,30.21317772]
[1726599672785,11.41053345,132.76,132.7,30.21317772]
[1726599672983,19.29097423,132.77,132.7,30.21317772]
[1726599673393,1.88381717,132.76,132.7,30.21317772]
[1726599674098,7.88064078,132.77,132.7,30.21317772]
[1726599675091,7.88064078,132.77,132.72,23.90317772]
[1726599675586,0.12549,132.76,132.7,30.21317772]
[1726599676098,0.12549,132.76,132.72,23.90317772]
[1726599676304,7.88064078,132.77,132.72,23.90317772]
[1726599680238,7.88064078,132.77,132.7,30.21317772]
[1726599681501,1.88360876,132.76,132.7,30.21317772]
[1726599682086,0.12549,132.75,132.7,6.31]
[1726599682288,2.00936786,132.75,132.7,6.31]
[1726599682912,1.88387786,132.75,132.7,30.21317772]
[1726599683412,1.88360489,132.76,132.7,30.21317772]
[1726599684984,7.5314,132.78,132.7,30.21317772]
[1726599684985,2.00907816,132.77,132.7,30.21317772]
[1726599685201,2.00904697,132.77,132.7,30.21317772]
[1726599685406,2.00904679,132.77,132.7,30.21317772]
[1726599685603,0.12549,132.78,132.72,23.90317772]
[1726599686113,0.0808848,132.79,132.72,23.90317772]
[1726599687015,0.0808848,132.79,132.73,15.7807]
[1726599687309,0.0808848,132.79,132.74,23.90317772]
[1726599691313,0.0808848,132.79,132.76,23.90317772]
[1726599693011,0.0808848,132.79,132.76,25.40937594]
[1726599694212,0.0808848,132.79,132.76,23.90317772]
[1726599694710,0.0808848,132.79,132.78,23.90317772]
[1726599696614,0.0808848,132.79,132.78,39.14977772]
[1726599698408,0.0808848,132.79,132.78,40.65572246]
[1726599699324,0.2567502,132.83,132.78,64.43260646]
[1726599699525,0.2567502,132.83,132.8,23.90317772]
[1726599699824,0.2567502,132.83,132.81,1.50575095]
[1726599699999,0.2567502,132.83,132.8,23.90317772]
[1726599700202,0.2567502,132.83,132.78,62.92666172]
[1726599700705,0.2567502,132.83,132.8,23.90317772]
[1726599701524,0.2567502,132.83,132.78,62.92666172]
[1726599703221,0.2567502,132.83,132.8,23.90317772]
[1726599704530,0.2567502,132.83,132.82,23.90317772]
[1726599709215,0.2567502,132.83,132.78,39.023484]
[1726599709415,0.2567502,132.83,132.79,23.90317772]
[1726599711436,0.2567502,132.83,132.81,23.90317772]
[1726599712739,0.2567502,132.83,132.82,1.50543095]
[1726599712939,0.2567502,132.83,132.81,23.90317772]
[1726599724133,0.2567502,132.83,132.82,50.422284]
[1726599725160,0.503046,132.87,132.82,50.422284]
[1726599725336,0.503046,132.87,132.84,23.90317772]
[1726599729061,0.503046,132.87,132.86,23.90317772]
[1726599730057,0.503046,132.87,132.86,15.24833261]
[1726599731144,0.2567502,132.91,132.86,15.24833261]
[1726599731450,0.2567502,132.91,132.9,15.24833261]
[1726599736471,0.2567502,132.91,132.89,23.81774291]
[1726599737447,0.2567502,132.91,132.9,1.50454271]
[1726599737651,0.503046,132.95,132.9,45.40686865]
[1726599737855,0.503046,132.95,132.93,23.81774291]
[1726599740461,0.503046,132.95,132.94,23.902374]
[1726599740667,0.503046,132.95,132.94,0.12549]
[1726599740976,0.503046,132.95,132.93,23.81774291]
[1726599744564,0.2567502,132.99,132.94,20.12549]
[1726599744874,0.2567502,132.99,132.97,23.81774291]
[1726599745260,0.2567502,132.99,132.93,20.0]
[1726599745477,0.2567502,132.99,132.93,43.81774291]
[1726599745649,0.2567502,132.99,132.97,23.81774291]
[1726599746054,0.2567502,132.99,132.98,1.50379603]
[1726599746279,6.6454,133.02,132.98,1.50379603]
[1726599746280,7.1949322,133.02,132.98,1.50379603]
[1726599747374,0.5495322,133.02,132.97,23.81774291]
[1726599748264,2.4293009,133.02,132.94,16.2306]
[1726599748456,7.5184,133.01,132.93,43.81774291]
[1726599749183,1.88008262,133.0,132.93,43.81774291]
[1726599749675,16.4439,132.99,132.92,20.0]
[1726599749874,9.40041179,132.98,132.91,23.81774291]